[Event "Titled Tuesday Blitz July 05 Early 2022"]
[White "Taspinar, Yanki"]
[Black "Shimanov, Aleksandr"]
[WhiteFideId "34561188"]
[BlackFideId "4198603"]
[WhiteElo "1549"]
[BlackElo "2605"]
[Result "0-1"]
[Round "04"]
[TimeControl "180+1"]
[Date "2022.07.05"]
[WhiteClock "0:00:07"]
[BlackClock "0:01:21"]

1. c4 {[%clk 0:02:54]}  g6 {[%clk 0:02:58]} 2. Nc3 {[%clk 0:02:54]}  Bg7 {[%clk 0:02:59]} 3. d4 {[%clk 0:02:53]}  Nf6 {[%clk 0:02:58]} 4. e4 {[%clk 0:02:52]}  O-O {[%clk 0:02:57]} 5. Be2 {[%clk 0:02:51]}  d6 {[%clk 0:02:57]} 6. Bg5 {[%clk 0:02:51]}  c5 {[%clk 0:02:51]} 7. d5 {[%clk 0:02:51]}  e6 {[%clk 0:02:51]} 8. Qd2 {[%clk 0:02:49]}  exd5 {[%clk 0:02:50]} 9. exd5 {[%clk 0:02:50]}  Qb6 {[%clk 0:02:42]} 10. Nf3 {[%clk 0:02:32]}  Bf5 {[%clk 0:02:36]} 11. Bxf6 {[%clk 0:01:25]}  Bxf6 {[%clk 0:02:35]} 12. O-O {[%clk 0:01:26]}  Nd7 {[%clk 0:02:30]} 13. Rae1 {[%clk 0:01:24]}  Rfe8 {[%clk 0:02:28]} 14. Bd1 {[%clk 0:01:23]}  a6 {[%clk 0:02:05]} 15. Ba4 {[%clk 0:01:22]}  Qc7 {[%clk 0:02:02]} 16. Rxe8+ {[%clk 0:01:20]}  Rxe8 {[%clk 0:02:02]} 17. Re1 {[%clk 0:01:20]}  Rxe1+ {[%clk 0:02:01]} 18. Qxe1 {[%clk 0:01:21]}  Ne5 {[%clk 0:01:57]} 19. Nxe5 {[%clk 0:01:17]}  Bxe5 {[%clk 0:01:58]} 20. Bd1 {[%clk 0:01:08]}  h5 {[%clk 0:01:55]} 21. g3 {[%clk 0:01:03]}  Kg7 {[%clk 0:01:52]} 22. Qd2 {[%clk 0:01:01]}  Qa5 {[%clk 0:01:50]} 23. Bb3 {[%clk 0:00:48]}  b5 {[%clk 0:01:48]} 24. Qe3 {[%clk 0:00:30]}  Qb4 {[%clk 0:01:45]} 25. cxb5 {[%clk 0:00:18]}  axb5 {[%clk 0:01:46]} 26. Qe2 {[%clk 0:00:17]}  c4 {[%clk 0:01:45]} 27. Bd1 {[%clk 0:00:16]}  Bxc3 {[%clk 0:01:42]} 28. bxc3 {[%clk 0:00:17]}  Qxc3 {[%clk 0:01:42]} 29. Kg2 {[%clk 0:00:15]}  Qd4 {[%clk 0:01:39]} 30. a4 {[%clk 0:00:11]}  Qxd5+ {[%clk 0:01:35]} 31. f3 {[%clk 0:00:12]}  bxa4 {[%clk 0:01:29]} 32. Bxa4 {[%clk 0:00:12]}  Qd4 {[%clk 0:01:29]} 33. h4 {[%clk 0:00:07]}  d5 {[%clk 0:01:25]} 34. Be8 {[%clk 0:00:06]}  c3 {[%clk 0:01:21]} 35. Qe7 {[%clk 0:00:06]}  Qf6 {[%clk 0:01:21]} 36. Qc7 {[%clk 0:00:07]}  c2 {[%clk 0:01:21]} 37. Ba4 {[%clk 0:00:07]}  Qb2 {[%clk 0:01:21]} 0-1


[Site "https://www.chess.com"]

[Event "Titled Tuesday Blitz July 05 Early 2022"]
[White "Terry, Renato"]
[Black "Maximov, Dmitry"]
[WhiteFideId "3803457"]
[BlackFideId "14105659"]
[WhiteElo "2577"]
[BlackElo "2494"]
[Result "1-0"]
[Round "04"]
[TimeControl "180+1"]
[Date "2022.07.05"]
[WhiteClock "0:00:52"]
[BlackClock "0:00:01"]

1. d4 {[%clk 0:03:00]}  Nf6 {[%clk 0:02:59]} 2. Bg5 {[%clk 0:03:00]}  c5 {[%clk 0:02:59]} 3. Bxf6 {[%clk 0:03:00]}  gxf6 {[%clk 0:02:59]} 4. d5 {[%clk 0:03:00]}  Qb6 {[%clk 0:02:59]} 5. Qc1 {[%clk 0:03:00]}  f5 {[%clk 0:02:58]} 6. c4 {[%clk 0:02:59]}  h5 {[%clk 0:02:52]} 7. Nc3 {[%clk 0:02:55]}  h4 {[%clk 0:02:52]} 8. Nf3 {[%clk 0:02:52]}  Na6 {[%clk 0:02:47]} 9. e3 {[%clk 0:02:48]}  Qh6 {[%clk 0:02:38]} 10. a3 {[%clk 0:02:43]}  Bg7 {[%clk 0:02:37]} 11. Qc2 {[%clk 0:02:42]}  d6 {[%clk 0:02:37]} 12. Bd3 {[%clk 0:02:40]}  Qg6 {[%clk 0:02:27]} 13. Rg1 {[%clk 0:02:25]}  Bd7 {[%clk 0:02:16]} 14. g3 {[%clk 0:02:22]}  h3 {[%clk 0:02:08]} 15. O-O-O {[%clk 0:02:16]}  Qf6 {[%clk 0:01:49]} 16. Nh4 {[%clk 0:02:06]}  e6 {[%clk 0:01:49]} 17. f4 {[%clk 0:01:58]}  O-O-O {[%clk 0:01:37]} 18. e4 {[%clk 0:01:54]}  Nc7 {[%clk 0:01:29]} 19. dxe6 {[%clk 0:01:48]}  fxe6 {[%clk 0:01:24]} 20. exf5 {[%clk 0:01:49]}  Kb8 {[%clk 0:00:59]} 21. Ne4 {[%clk 0:01:43]}  Qh6 {[%clk 0:00:50]} 22. Nxd6 {[%clk 0:01:40]}  Be8 {[%clk 0:00:31]} 23. Be4 {[%clk 0:01:31]}  Bd4 {[%clk 0:00:12]} 24. Rxd4 {[%clk 0:01:31]}  cxd4 {[%clk 0:00:12]} 25. Nxb7 {[%clk 0:01:32]}  exf5 {[%clk 0:00:11]} 26. Nxf5 {[%clk 0:01:24]}  d3 {[%clk 0:00:10]} 27. Nxh6 {[%clk 0:01:17]}  dxc2 {[%clk 0:00:10]} 28. Nxd8 {[%clk 0:01:17]}  Rxh6 {[%clk 0:00:09]} 29. c5 {[%clk 0:01:11]}  Ba4 {[%clk 0:00:08]} 30. Bxc2 {[%clk 0:01:09]}  Bxc2 {[%clk 0:00:07]} 31. Kxc2 {[%clk 0:01:10]}  Kc8 {[%clk 0:00:08]} 32. Rd1 {[%clk 0:01:08]}  Rg6 {[%clk 0:00:05]} 33. b4 {[%clk 0:01:02]}  a5 {[%clk 0:00:03]} 34. Kb3 {[%clk 0:01:01]}  axb4 {[%clk 0:00:03]} 35. axb4 {[%clk 0:01:02]}  Rg7 {[%clk 0:00:03]} 36. Nc6 {[%clk 0:01:00]}  Kb7 {[%clk 0:00:03]} 37. Ne5 {[%clk 0:00:59]}  Nb5 {[%clk 0:00:03]} 38. Kc4 {[%clk 0:00:59]}  Nc7 {[%clk 0:00:03]} 39. Rd6 {[%clk 0:00:58]}  Ne8 {[%clk 0:00:03]} 40. Rb6+ {[%clk 0:00:58]}  Kc7 {[%clk 0:00:03]} 41. Rh6 {[%clk 0:00:59]}  Re7 {[%clk 0:00:02]} 42. Rxh3 {[%clk 0:00:59]}  Nf6 {[%clk 0:00:03]} 43. Rh6 {[%clk 0:00:59]}  Ne4 {[%clk 0:00:03]} 44. Rc6+ {[%clk 0:00:59]}  Kb7 {[%clk 0:00:04]} 45. Rb6+ {[%clk 0:01:00]}  Kc7 {[%clk 0:00:04]} 46. Ra6 {[%clk 0:00:59]}  Kb7 {[%clk 0:00:04]} 47. b5 {[%clk 0:00:59]}  Nd2+ {[%clk 0:00:03]} 48. Kd3 {[%clk 0:00:58]}  Nb3 {[%clk 0:00:03]} 49. c6+ {[%clk 0:00:58]}  Kb8 {[%clk 0:00:03]} 50. Kc4 {[%clk 0:00:58]}  Nd2+ {[%clk 0:00:02]} 51. Kb4 {[%clk 0:00:59]}  Ne4 {[%clk 0:00:02]} 52. b6 {[%clk 0:00:57]}  Nd6 {[%clk 0:00:02]} 53. Nd7+ {[%clk 0:00:54]}  Rxd7 {[%clk 0:00:01]} 54. cxd7 {[%clk 0:00:55]}  Nb7 {[%clk 0:00:01]} 55. Ra7 {[%clk 0:00:52]}  Nd8 {[%clk 0:00:01]} 56. Kb5 {[%clk 0:00:52]} 1-0


[Site "https://www.chess.com"]

[Event "Titled Tuesday Blitz July 05 Early 2022"]
[White "Tristan, Leonardo"]
[Black "Vachier-Lagrave, Maxime"]
[WhiteFideId "113816"]
[BlackFideId "623539"]
[WhiteElo "2404"]
[BlackElo "2784"]
[Result "0-1"]
[Round "04"]
[TimeControl "180+1"]
[Date "2022.07.05"]
[WhiteClock "0:00:02"]
[BlackClock "0:00:54"]

1. d4 {[%clk 0:03:00]}  d5 {[%clk 0:02:57]} 2. Nf3 {[%clk 0:03:01]}  Nf6 {[%clk 0:02:55]} 3. Bf4 {[%clk 0:03:01]}  c6 {[%clk 0:02:50]} 4. e3 {[%clk 0:03:00]}  Bg4 {[%clk 0:02:49]} 5. c4 {[%clk 0:03:00]}  e6 {[%clk 0:02:49]} 6. Qb3 {[%clk 0:02:49]}  Qa5+ {[%clk 0:02:48]} 7. Nc3 {[%clk 0:02:48]}  Bb4 {[%clk 0:02:47]} 8. Ne5 {[%clk 0:02:38]}  Bf5 {[%clk 0:02:39]} 9. a3 {[%clk 0:02:29]}  Bxc3+ {[%clk 0:02:39]} 10. bxc3 {[%clk 0:02:29]}  Ne4 {[%clk 0:02:35]} 11. Rc1 {[%clk 0:02:20]}  f6 {[%clk 0:02:07]} 12. Qxb7 {[%clk 0:01:58]}  fxe5 {[%clk 0:02:07]} 13. Qxa8 {[%clk 0:01:58]}  O-O {[%clk 0:02:06]} 14. Bd3 {[%clk 0:00:46]}  exf4 {[%clk 0:02:00]} 15. O-O {[%clk 0:00:38]}  Nxc3 {[%clk 0:01:27]} 16. Bxf5 {[%clk 0:00:35]}  exf5 {[%clk 0:01:27]} 17. Kh1 {[%clk 0:00:13]}  dxc4 {[%clk 0:01:23]} 18. Rc2 {[%clk 0:00:13]}  Qc7 {[%clk 0:01:20]} 19. Rb2 {[%clk 0:00:13]}  Nb5 {[%clk 0:01:15]} 20. d5 {[%clk 0:00:13]}  c3 {[%clk 0:01:10]} 21. Rb3 {[%clk 0:00:13]}  c2 {[%clk 0:01:05]} 22. Rc1 {[%clk 0:00:12]}  fxe3 {[%clk 0:01:03]} 23. fxe3 {[%clk 0:00:09]}  Qa5 {[%clk 0:00:59]} 24. Rd3 {[%clk 0:00:05]}  Qb6 {[%clk 0:00:54]} 25. Rxc2 {[%clk 0:00:02]}  Nc7 {[%clk 0:00:54]} 0-1


[Site "https://www.chess.com"]

[Event "Titled Tuesday Blitz July 05 Early 2022"]
[White "Vlassov, Nikolai"]
[Black "Grandelius, Nils"]
[WhiteFideId "4103360"]
[BlackFideId "1710400"]
[WhiteElo "2324"]
[BlackElo "2617"]
[Result "0-1"]
[Round "04"]
[TimeControl "180+1"]
[Date "2022.07.05"]
[WhiteClock "0:00:05"]
[BlackClock "0:00:38"]

1. e4 {[%clk 0:03:00]}  c5 {[%clk 0:02:59]} 2. c3 {[%clk 0:03:00]}  e5 {[%clk 0:02:58]} 3. Nf3 {[%clk 0:03:00]}  Nc6 {[%clk 0:02:58]} 4. Bc4 {[%clk 0:03:01]}  g6 {[%clk 0:02:47]} 5. d4 {[%clk 0:02:49]}  cxd4 {[%clk 0:02:45]} 6. cxd4 {[%clk 0:02:49]}  exd4 {[%clk 0:02:46]} 7. O-O {[%clk 0:02:39]}  Bg7 {[%clk 0:02:41]} 8. Qb3 {[%clk 0:02:29]}  Qe7 {[%clk 0:02:39]} 9. Bg5 {[%clk 0:02:21]}  f6 {[%clk 0:02:29]} 10. Bxg8 {[%clk 0:02:00]}  fxg5 {[%clk 0:02:29]} 11. Na3 {[%clk 0:01:44]}  g4 {[%clk 0:02:21]} 12. Nd2 {[%clk 0:01:43]}  Rb8 {[%clk 0:01:57]} 13. Bd5 {[%clk 0:01:36]}  Nd8 {[%clk 0:01:45]} 14. Nb5 {[%clk 0:01:33]}  Ne6 {[%clk 0:01:43]} 15. Nxa7 {[%clk 0:01:09]}  O-O {[%clk 0:01:43]} 16. Rac1 {[%clk 0:01:07]}  Kh8 {[%clk 0:01:43]} 17. Nxc8 {[%clk 0:00:55]}  Rbxc8 {[%clk 0:01:44]} 18. Rxc8 {[%clk 0:00:53]}  Rxc8 {[%clk 0:01:45]} 19. Qxb7 {[%clk 0:00:52]}  Rc2 {[%clk 0:01:37]} 20. Bxe6 {[%clk 0:00:44]}  Rxd2 {[%clk 0:01:10]} 21. Bxg4 {[%clk 0:00:32]}  d3 {[%clk 0:01:06]} 22. Rd1 {[%clk 0:00:23]}  Rxb2 {[%clk 0:01:03]} 23. Qc8+ {[%clk 0:00:23]}  Qf8 {[%clk 0:01:00]} 24. Qxf8+ {[%clk 0:00:21]}  Bxf8 {[%clk 0:01:01]} 25. Rxd3 {[%clk 0:00:21]}  Bc5 {[%clk 0:01:01]} 26. Rxd7 {[%clk 0:00:13]}  Rxf2 {[%clk 0:00:57]} 27. g3 {[%clk 0:00:09]}  Rf4+ {[%clk 0:00:51]} 28. Kg2 {[%clk 0:00:09]}  Rxg4 {[%clk 0:00:52]} 29. Rd5 {[%clk 0:00:08]}  Be7 {[%clk 0:00:38]} 30. Kf3 {[%clk 0:00:05]}  Rg5 {[%clk 0:00:38]} 0-1


[Site "https://www.chess.com"]

[Event "Titled Tuesday Blitz July 05 Early 2022"]
[White "Zomorrodian, Eilia"]
[Black "Ibrahimli, Murad"]
[WhiteFideId "12551805"]
[BlackFideId "13410229"]
[WhiteElo "2098"]
[BlackElo "2109"]
[Result "1-0"]
[Round "04"]
[TimeControl "180+1"]
[Date "2022.07.05"]
[WhiteClock "0:00:05"]
[BlackClock "0:00:18"]

1. e4 {[%clk 0:03:00]}  c6 {[%clk 0:03:00]} 2. d4 {[%clk 0:03:01]}  d5 {[%clk 0:03:00]} 3. exd5 {[%clk 0:03:01]}  cxd5 {[%clk 0:03:00]} 4. c4 {[%clk 0:03:02]}  Nf6 {[%clk 0:03:00]} 5. Nc3 {[%clk 0:03:03]}  e6 {[%clk 0:03:01]} 6. c5 {[%clk 0:03:03]}  b6 {[%clk 0:02:58]} 7. b4 {[%clk 0:03:02]}  Be7 {[%clk 0:02:57]} 8. Nf3 {[%clk 0:02:59]}  O-O {[%clk 0:02:52]} 9. Bf4 {[%clk 0:02:59]}  Ne4 {[%clk 0:02:47]} 10. Qc2 {[%clk 0:02:57]}  a5 {[%clk 0:02:39]} 11. Na4 {[%clk 0:02:55]}  Nd7 {[%clk 0:02:32]} 12. Bb5 {[%clk 0:02:39]}  axb4 {[%clk 0:02:28]} 13. c6 {[%clk 0:02:39]}  Ba6 {[%clk 0:01:37]} 14. Bxa6 {[%clk 0:02:09]}  Rxa6 {[%clk 0:01:37]} 15. cxd7 {[%clk 0:02:09]}  Qxd7 {[%clk 0:01:38]} 16. Nb2 {[%clk 0:02:04]}  Qa7 {[%clk 0:01:28]} 17. Nd3 {[%clk 0:01:51]}  b3 {[%clk 0:01:14]} 18. Qxb3 {[%clk 0:01:35]}  Ra3 {[%clk 0:01:13]} 19. Qb5 {[%clk 0:01:35]}  Nc3 {[%clk 0:01:07]} 20. Qb2 {[%clk 0:01:08]}  Ne4 {[%clk 0:01:07]} 21. Qb5 {[%clk 0:00:46]}  Nc3 {[%clk 0:01:02]} 22. Qb2 {[%clk 0:00:45]}  Qa6 {[%clk 0:00:57]} 23. Nde5 {[%clk 0:00:17]}  Bb4 {[%clk 0:00:51]} 24. Ng1 {[%clk 0:00:06]}  Ne4+ {[%clk 0:00:47]} 25. Qxb4 {[%clk 0:00:06]}  Rxa2 {[%clk 0:00:41]} 26. Rxa2 {[%clk 0:00:06]}  Qxa2 {[%clk 0:00:42]} 27. Ne2 {[%clk 0:00:07]}  f6 {[%clk 0:00:36]} 28. Nd7 {[%clk 0:00:04]}  Rc8 {[%clk 0:00:36]} 29. O-O {[%clk 0:00:04]}  Qxe2 {[%clk 0:00:35]} 30. Qe7 {[%clk 0:00:04]}  Nxf2 {[%clk 0:00:28]} 31. Rxf2 {[%clk 0:00:02]}  Qd1+ {[%clk 0:00:23]} 32. Rf1 {[%clk 0:00:02]}  Qxd4+ {[%clk 0:00:24]} 33. Kh1 {[%clk 0:00:03]}  Qxf4 {[%clk 0:00:24]} 34. Qxe6+ {[%clk 0:00:03]}  Kh8 {[%clk 0:00:22]} 35. Re1 {[%clk 0:00:03]}  h6 {[%clk 0:00:17]} 36. Nxf6 {[%clk 0:00:04]}  Qxf6 {[%clk 0:00:17]} 37. Qxc8+ {[%clk 0:00:04]}  Kh7 {[%clk 0:00:18]} 38. Qe6 {[%clk 0:00:05]} 1-0


[Site "https://www.chess.com"]

[Event "Titled Tuesday Blitz July 05 Early 2022"]
[White "Chernobay, Artem"]
[Black "Tristan, Leonardo"]
[WhiteFideId "4167406"]
[BlackFideId "113816"]
[WhiteElo "2473"]
[BlackElo "2404"]
[Result "0-1"]
[Round "05"]
[TimeControl "180+1"]
[Date "2022.07.05"]
[WhiteClock "0:00:01"]
[BlackClock "0:00:02"]

1. d4 {[%clk 0:02:59]}  d5 {[%clk 0:03:00]} 2. c4 {[%clk 0:02:59]}  e6 {[%clk 0:03:00]} 3. Nc3 {[%clk 0:02:59]}  a6 {[%clk 0:03:00]} 4. cxd5 {[%clk 0:02:58]}  exd5 {[%clk 0:03:01]} 5. Bf4 {[%clk 0:02:58]}  Nf6 {[%clk 0:03:01]} 6. e3 {[%clk 0:02:58]}  c5 {[%clk 0:03:01]} 7. Bd3 {[%clk 0:02:47]}  c4 {[%clk 0:03:01]} 8. Bc2 {[%clk 0:02:45]}  b5 {[%clk 0:03:02]} 9. a3 {[%clk 0:02:38]}  Bb7 {[%clk 0:03:02]} 10. Nf3 {[%clk 0:02:35]}  Be7 {[%clk 0:03:02]} 11. O-O {[%clk 0:02:33]}  O-O {[%clk 0:03:02]} 12. Ne5 {[%clk 0:02:29]}  Nbd7 {[%clk 0:03:02]} 13. Qf3 {[%clk 0:02:20]}  Re8 {[%clk 0:02:58]} 14. Qh3 {[%clk 0:02:03]}  Nf8 {[%clk 0:02:56]} 15. Bg5 {[%clk 0:01:28]}  Ne4 {[%clk 0:02:50]} 16. Bxe7 {[%clk 0:01:13]}  Qxe7 {[%clk 0:02:51]} 17. f3 {[%clk 0:00:50]}  Nxc3 {[%clk 0:02:26]} 18. bxc3 {[%clk 0:00:51]}  Bc8 {[%clk 0:02:19]} 19. Bf5 {[%clk 0:00:43]}  f6 {[%clk 0:01:58]} 20. Bxc8 {[%clk 0:00:43]}  fxe5 {[%clk 0:01:58]} 21. Bf5 {[%clk 0:00:37]}  exd4 {[%clk 0:01:58]} 22. exd4 {[%clk 0:00:38]}  Qe3+ {[%clk 0:01:58]} 23. Kh1 {[%clk 0:00:38]}  Qxc3 {[%clk 0:01:59]} 24. Qh4 {[%clk 0:00:24]}  Ra7 {[%clk 0:01:54]} 25. Rfe1 {[%clk 0:00:20]}  Rxe1+ {[%clk 0:01:47]} 26. Rxe1 {[%clk 0:00:19]}  Rf7 {[%clk 0:01:36]} 27. Bc8 {[%clk 0:00:10]}  Qxa3 {[%clk 0:01:30]} 28. Qd8 {[%clk 0:00:09]}  Qb4 {[%clk 0:01:03]} 29. Qe8 {[%clk 0:00:09]}  Rf6 {[%clk 0:00:50]} 30. h3 {[%clk 0:00:09]}  h6 {[%clk 0:00:50]} 31. Re7 {[%clk 0:00:08]}  Qd2 {[%clk 0:00:26]} 32. Be6+ {[%clk 0:00:07]}  Kh7 {[%clk 0:00:23]} 33. Bf7 {[%clk 0:00:07]}  Qc1+ {[%clk 0:00:22]} 34. Kh2 {[%clk 0:00:07]}  Qf4+ {[%clk 0:00:22]} 35. Kh1 {[%clk 0:00:07]}  Qc1+ {[%clk 0:00:13]} 36. Kh2 {[%clk 0:00:06]}  Qf4+ {[%clk 0:00:12]} 37. Kh1 {[%clk 0:00:05]}  Rxf7 {[%clk 0:00:13]} 38. Rxf7 {[%clk 0:00:05]}  Qc1+ {[%clk 0:00:09]} 39. Kh2 {[%clk 0:00:05]}  Ng6 {[%clk 0:00:03]} 40. Qd7 {[%clk 0:00:05]}  Kh8 {[%clk 0:00:04]} 41. Qf5 {[%clk 0:00:03]}  Kh7 {[%clk 0:00:03]} 42. Qd7 {[%clk 0:00:02]}  Kh8 {[%clk 0:00:03]} 43. Qd6 {[%clk 0:00:02]}  Qg5 {[%clk 0:00:02]} 44. Qe6 {[%clk 0:00:01]}  Kh7 {[%clk 0:00:02]} 0-1


[Site "https://www.chess.com"]

[Event "Titled Tuesday Blitz July 05 Early 2022"]
[White "Guz, Ari"]
[Black "Naroditsky, Daniel"]
[WhiteFideId "2825759"]
[BlackFideId "2026961"]
[WhiteElo "1913"]
[BlackElo "2608"]
[Result "0-1"]
[Round "05"]
[TimeControl "180+1"]
[Date "2022.07.05"]
[WhiteClock "0:00:11"]
[BlackClock "0:00:05"]

1. e4 {[%clk 0:03:00]}  e5 {[%clk 0:02:57]} 2. Nf3 {[%clk 0:03:00]}  Nc6 {[%clk 0:02:56]} 3. Bc4 {[%clk 0:03:01]}  Nf6 {[%clk 0:02:56]} 4. d3 {[%clk 0:03:00]}  h6 {[%clk 0:02:54]} 5. O-O {[%clk 0:02:58]}  d6 {[%clk 0:02:53]} 6. c3 {[%clk 0:02:57]}  g5 {[%clk 0:02:52]} 7. Be3 {[%clk 0:02:52]}  Bg7 {[%clk 0:02:50]} 8. Nbd2 {[%clk 0:02:49]}  g4 {[%clk 0:02:47]} 9. Ne1 {[%clk 0:02:49]}  d5 {[%clk 0:02:44]} 10. exd5 {[%clk 0:02:34]}  Nxd5 {[%clk 0:02:45]} 11. Bc5 {[%clk 0:02:34]}  Be6 {[%clk 0:02:39]} 12. Ba3 {[%clk 0:02:24]}  Qd7 {[%clk 0:02:08]} 13. Ne4 {[%clk 0:02:24]}  b6 {[%clk 0:02:08]} 14. Qa4 {[%clk 0:02:02]}  Na5 {[%clk 0:01:41]} 15. Bb5 {[%clk 0:01:49]}  c6 {[%clk 0:01:40]} 16. Nd6+ {[%clk 0:01:50]}  Kf8 {[%clk 0:01:38]} 17. Bc4 {[%clk 0:01:40]}  Kg8 {[%clk 0:01:35]} 18. Nc2 {[%clk 0:01:32]}  Nxc4 {[%clk 0:01:27]} 19. dxc4 {[%clk 0:01:32]}  Nf4 {[%clk 0:01:28]} 20. Ne3 {[%clk 0:01:25]}  h5 {[%clk 0:01:17]} 21. Rad1 {[%clk 0:01:24]}  Qc7 {[%clk 0:01:05]} 22. Ndf5 {[%clk 0:01:01]}  c5 {[%clk 0:01:03]} 23. Nxg7 {[%clk 0:00:57]}  Kxg7 {[%clk 0:01:03]} 24. b4 {[%clk 0:00:58]}  h4 {[%clk 0:01:01]} 25. bxc5 {[%clk 0:00:57]}  bxc5 {[%clk 0:01:02]} 26. Rfe1 {[%clk 0:00:42]}  Rac8 {[%clk 0:00:52]} 27. Bc1 {[%clk 0:00:34]}  Qb7 {[%clk 0:00:50]} 28. Nd5 {[%clk 0:00:20]}  Ng6 {[%clk 0:00:38]} 29. Qc2 {[%clk 0:00:19]}  f5 {[%clk 0:00:37]} 30. Bg5 {[%clk 0:00:19]}  Rcf8 {[%clk 0:00:36]} 31. Ne7 {[%clk 0:00:17]}  h3 {[%clk 0:00:32]} 32. f3 {[%clk 0:00:16]}  g3 {[%clk 0:00:22]} 33. Nxg6 {[%clk 0:00:15]}  Kxg6 {[%clk 0:00:18]} 34. Rxe5 {[%clk 0:00:15]}  gxh2+ {[%clk 0:00:18]} 35. Kf2 {[%clk 0:00:15]}  hxg2 {[%clk 0:00:10]} 36. Rxe6+ {[%clk 0:00:15]}  Kxg5 {[%clk 0:00:10]} 37. Qd2+ {[%clk 0:00:15]}  Kh5 {[%clk 0:00:11]} 38. Qf4 {[%clk 0:00:10]}  g1=Q+ {[%clk 0:00:10]} 39. Rxg1 {[%clk 0:00:09]}  hxg1=Q+ {[%clk 0:00:10]} 40. Kxg1 {[%clk 0:00:10]}  Rhg8+ {[%clk 0:00:05]} 41. Kh2 {[%clk 0:00:11]}  Qb2+ {[%clk 0:00:05]} 0-1


[Site "https://www.chess.com"]

[Event "Titled Tuesday Blitz July 05 Early 2022"]
[White "Ibarra Jerez, Jose Carlos"]
[Black "Hakobyan, Aram"]
[WhiteFideId "2226332"]
[BlackFideId "13306677"]
[WhiteElo "2628"]
[BlackElo "2557"]
[Result "1-0"]
[Round "05"]
[TimeControl "180+1"]
[Date "2022.07.05"]
[WhiteClock "0:00:08"]
[BlackClock "0:00:02"]

1. e4 {[%clk 0:03:00]}  c5 {[%clk 0:03:00]} 2. Ne2 {[%clk 0:02:58]}  Nf6 {[%clk 0:02:55]} 3. Nbc3 {[%clk 0:02:57]}  Nc6 {[%clk 0:02:54]} 4. g3 {[%clk 0:02:55]}  g6 {[%clk 0:02:44]} 5. Bg2 {[%clk 0:02:55]}  Bg7 {[%clk 0:02:44]} 6. d3 {[%clk 0:02:54]}  d6 {[%clk 0:02:41]} 7. O-O {[%clk 0:02:54]}  Rb8 {[%clk 0:02:39]} 8. Bg5 {[%clk 0:02:45]}  h6 {[%clk 0:02:33]} 9. Be3 {[%clk 0:02:42]}  b5 {[%clk 0:02:27]} 10. h3 {[%clk 0:02:25]}  b4 {[%clk 0:02:26]} 11. Na4 {[%clk 0:02:22]}  Nd7 {[%clk 0:01:56]} 12. d4 {[%clk 0:02:13]}  cxd4 {[%clk 0:01:52]} 13. Nxd4 {[%clk 0:02:12]}  Bb7 {[%clk 0:01:47]} 14. Qd2 {[%clk 0:02:07]}  h5 {[%clk 0:01:36]} 15. b3 {[%clk 0:02:06]}  h4 {[%clk 0:01:11]} 16. g4 {[%clk 0:02:05]}  O-O {[%clk 0:00:55]} 17. Rad1 {[%clk 0:01:58]}  Qa5 {[%clk 0:00:33]} 18. Nf3 {[%clk 0:01:46]}  Ba6 {[%clk 0:00:30]} 19. Rfe1 {[%clk 0:01:46]}  Bb5 {[%clk 0:00:29]} 20. Nxh4 {[%clk 0:01:39]}  Bxa4 {[%clk 0:00:30]} 21. bxa4 {[%clk 0:01:40]}  Bc3 {[%clk 0:00:27]} 22. Qd5 {[%clk 0:01:33]}  Bxe1 {[%clk 0:00:17]} 23. Nxg6 {[%clk 0:01:11]}  Qxd5 {[%clk 0:00:09]} 24. exd5 {[%clk 0:01:11]}  Nde5 {[%clk 0:00:06]} 25. Nxf8 {[%clk 0:01:06]}  Kxf8 {[%clk 0:00:03]} 26. dxc6 {[%clk 0:01:01]}  Bc3 {[%clk 0:00:04]} 27. f4 {[%clk 0:00:46]}  Nc4 {[%clk 0:00:04]} 28. Bxa7 {[%clk 0:00:45]}  Rc8 {[%clk 0:00:04]} 29. Rf1 {[%clk 0:00:23]}  Na5 {[%clk 0:00:04]} 30. Bb6 {[%clk 0:00:18]}  Nxc6 {[%clk 0:00:04]} 31. a5 {[%clk 0:00:17]}  Bd4+ {[%clk 0:00:04]} 32. Bxd4 {[%clk 0:00:15]}  Nxd4 {[%clk 0:00:05]} 33. a6 {[%clk 0:00:16]}  Nb5 {[%clk 0:00:04]} 34. Rb1 {[%clk 0:00:16]}  Rxc2 {[%clk 0:00:02]} 35. Rxb4 {[%clk 0:00:15]}  Na7 {[%clk 0:00:02]} 36. Rb8+ {[%clk 0:00:14]}  Kg7 {[%clk 0:00:02]} 37. Rb7 {[%clk 0:00:14]}  Nc8 {[%clk 0:00:01]} 38. Bd5 {[%clk 0:00:11]}  e6 {[%clk 0:00:01]} 39. Bb3 {[%clk 0:00:10]}  Rc6 {[%clk 0:00:02]} 40. Bxe6 {[%clk 0:00:08]} 1-0


[Site "https://www.chess.com"]

[Event "Titled Tuesday Blitz July 05 Early 2022"]
[White "Jobava, Baadur"]
[Black "De Silva, L M S T"]
[WhiteFideId "13601520"]
[BlackFideId "9953698"]
[WhiteElo "2617"]
[BlackElo "1663"]
[Result "1-0"]
[Round "05"]
[TimeControl "180+1"]
[Date "2022.07.05"]
[WhiteClock "0:00:33"]
[BlackClock "0:00:20"]

1. b3 {[%clk 0:03:00]}  e5 {[%clk 0:02:59]} 2. Bb2 {[%clk 0:03:01]}  Nc6 {[%clk 0:02:59]} 3. Nf3 {[%clk 0:02:59]}  e4 {[%clk 0:02:59]} 4. Nd4 {[%clk 0:02:59]}  Nxd4 {[%clk 0:03:00]} 5. Bxd4 {[%clk 0:03:00]}  c5 {[%clk 0:03:00]} 6. Bb2 {[%clk 0:02:59]}  Nf6 {[%clk 0:03:00]} 7. e3 {[%clk 0:02:53]}  Be7 {[%clk 0:02:59]} 8. c4 {[%clk 0:02:41]}  b6 {[%clk 0:02:56]} 9. Nc3 {[%clk 0:02:40]}  Bb7 {[%clk 0:02:56]} 10. Be2 {[%clk 0:02:36]}  O-O {[%clk 0:02:55]} 11. O-O {[%clk 0:02:36]}  d5 {[%clk 0:02:53]} 12. cxd5 {[%clk 0:01:28]}  Nxd5 {[%clk 0:02:54]} 13. Nxe4 {[%clk 0:01:24]}  Nxe3 {[%clk 0:02:54]} 14. fxe3 {[%clk 0:01:24]}  Bxe4 {[%clk 0:02:54]} 15. Bc4 {[%clk 0:01:24]}  Bd3 {[%clk 0:02:48]} 16. Qg4 {[%clk 0:01:20]}  g6 {[%clk 0:02:39]} 17. Rf2 {[%clk 0:01:00]}  Bxc4 {[%clk 0:02:33]} 18. Qxc4 {[%clk 0:01:01]}  Bh4 {[%clk 0:01:53]} 19. g3 {[%clk 0:00:56]}  Bg5 {[%clk 0:01:51]} 20. Raf1 {[%clk 0:00:55]}  Qe7 {[%clk 0:01:51]} 21. h4 {[%clk 0:00:54]}  Bh6 {[%clk 0:01:50]} 22. Qc3 {[%clk 0:00:53]}  f6 {[%clk 0:01:49]} 23. Rxf6 {[%clk 0:00:53]}  Rxf6 {[%clk 0:01:04]} 24. Rxf6 {[%clk 0:00:54]}  b5 {[%clk 0:00:39]} 25. Rc6 {[%clk 0:00:38]}  Rf8 {[%clk 0:00:18]} 26. Qh8+ {[%clk 0:00:35]}  Kf7 {[%clk 0:00:19]} 27. Qxh7+ {[%clk 0:00:35]}  Ke8 {[%clk 0:00:19]} 28. Rc8+ {[%clk 0:00:33]}  Kd7 {[%clk 0:00:19]} 29. Rc7+ {[%clk 0:00:33]}  Kxc7 {[%clk 0:00:18]} 30. Qxe7+ {[%clk 0:00:34]}  Kc6 {[%clk 0:00:18]} 31. Qe6+ {[%clk 0:00:34]}  Kc7 {[%clk 0:00:19]} 32. Be5+ {[%clk 0:00:33]}  Kb7 {[%clk 0:00:18]} 33. Qd7+ {[%clk 0:00:33]}  Kb6 {[%clk 0:00:19]} 34. Bc7+ {[%clk 0:00:33]}  Kb7 {[%clk 0:00:19]} 35. Bd6+ {[%clk 0:00:33]}  Kb6 {[%clk 0:00:20]} 36. Qc7+ {[%clk 0:00:33]}  Ka6 {[%clk 0:00:20]} 37. Qc6+ {[%clk 0:00:33]}  Ka5 {[%clk 0:00:21]} 38. Bxc5 {[%clk 0:00:32]}  Rb8 {[%clk 0:00:20]} 39. b4+ {[%clk 0:00:32]}  Ka4 {[%clk 0:00:20]} 40. Qa6# {[%clk 0:00:33]} 1-0


[Site "https://www.chess.com"]